[Event "CCT Chessable Masters D-III 2024"]
[Site "Online"]
[Date "2024.02.02"]
[Round "1"]
[White "Grischuk, Alexander"]
[Black "Dubov, Daniil"]
[Result "1/2-1/2"]
[ECO "D58"]
[WhiteElo "2732"]
[BlackElo "2708"]
[Annotator "TA"]
[PlyCount "44"]
[EventDate "2024.01.12"]
[EventType "k.o."]
[EventCountry "NET"]
[SourceTitle "playchess.com"]
[Source "ChessBase"]
[SourceQuality "1"]
[TimeControl "600+2"]

{[%evp 25,44,-6,0,-7,0,0,0,0,0,0,5,0,0,0,9,0,6,0,20,-7,6]} 1. d4 {[%emt 0:00:06]} Nf6 {[%emt 0:00:05]} 2. Nf3 {[%emt 0:00:02]} e6 {[%emt 0:00:04]} 3. c4 {[%emt 0:00:01]} d5 {[%emt 0:00:04]} 4. Nc3 {[%emt 0:00:01]} Be7 {[%emt 0:00:14]} 5. Bg5 {[%emt 0:00:08]} h6 {[%emt 0:00:07]} 6. Bh4 {[%emt 0:00:01]} O-O {[%emt 0:00:06]} 7. e3 {[%emt 0:00:01]} b6 {[%emt 0:00:07]} 8. Bd3 {[%emt 0:00:29]} dxc4 {[%emt 0:00:02]} 9. Bxc4 {[%emt 0:00:01]} Bb7 {[%emt 0:00:03]} 10. O-O {[%emt 0:00:03]} Nbd7 {[%emt 0:00:06]} 11. Qe2 {[%emt 0:00:05]} Ne4 {[%emt 0:00:11]} 12. Nxe4 {[%emt 0:00:59]} Bxe4 {[%emt 0:00:08]} 13. Bxe7 {[%emt 0:00:01]} Qxe7 {[%emt 0:00:01] The position is equal.} 14. Bd3 {[%emt 0:00:01]} Bxd3 {[%emt 0:00:24]} (14... Bxf3 {is more complex.} 15. Qxf3 c5 16. dxc5 Ne5) 15. Qxd3 {[%emt 0:00:00]} c5 {[%emt 0:00:03]} 16. Rac1 {[%emt 0:00:05]} Rfd8 {[%emt 0:00:09]} 17. Rfd1 {[%emt 0:00:05]} Rac8 {[%emt 0:00:12]} 18. h3 {[%emt 0:00:04]} Nf6 {[%emt 0:00:18]} 19. Qa6 {[%emt 0:00:41]} Ne4 {[%emt 0:00:13]} 20. Qd3 {[%emt 0:00:25]} Nf6 {[%emt 0:00:06]} 21. Qa6 {[%emt 0:00:13]} Ne4 {[%emt 0:00:02]} 22. Qd3 {[%emt 0:00:02]} Nf6 {[%emt 0:00:02] An uneventful encounter.   Weighted Error Value: White=0.07 (flawless) /Black=0.03 (flawless) .  Inaccurate:     	White=1     	---        OK:         	White=1     	Black=5} 1/2-1/2

[Event "CCT Chessable Masters D-III 2024"]
[Site "Online"]
[Date "2024.02.02"]
[Round "1"]
[White "Dubov, Daniil"]
[Black "Grischuk, Alexander"]
[Result "1/2-1/2"]
[ECO "D55"]
[WhiteElo "2708"]
[BlackElo "2732"]
[Annotator "TA"]
[PlyCount "46"]
[EventDate "2024.01.12"]
[EventType "k.o."]
[EventCountry "NET"]
[SourceTitle "playchess.com"]
[Source "ChessBase"]
[SourceQuality "1"]
[TimeControl "600+2"]

{[%evp 21,46,10,0,0,0,0,0,-13,-5,-5,-2,-8,0,0,0,0,0,0,0,0,13,0,0,0,7,0,0]} 1. Nf3 {[%emt 0:00:03]} d5 {[%emt 0:00:06]} 2. d4 {[%emt 0:00:03]} Nf6 {[%emt 0:00:02]} 3. c4 {[%emt 0:00:02]} e6 {[%emt 0:00:01]} 4. Nc3 {[%emt 0:00:02]} Be7 {[%emt 0:00:07]} 5. Bg5 {[%emt 0:00:05]} h6 {[%emt 0:00:03]} 6. Bxf6 {[%emt 0:00:01]} Bxf6 {[%emt 0:00:01]} 7. e3 {[%emt 0:00:01]} O-O {[%emt 0:00:01]} 8. Rc1 {[%emt 0:00:03]} c6 {[%emt 0:00:05]} 9. Bd3 {[%emt 0:00:16]} dxc4 {[%emt 0:00:19]} 10. Bxc4 {[%emt 0:00:02]} Nd7 {[%emt 0:00:01][%cal Bb8d7,Bd7b6,Bb6d5][%mdl 32]} 11. O-O {[%emt 0:00:02]} e5 {[%emt 0:00:01] The position is equal.} 12. d5 {[%emt 0:00:38]} Nb6 {[%emt 0:00:02]} 13. Bb3 {[%emt 0:00:14]} e4 {[%emt 0:02:07]} 14. Nxe4 {[%emt 0:00:22]} Bxb2 {[%emt 0:00:01]} 15. Rc2 {[%emt 0:01:12]} cxd5 {[%emt 0:00:07]} 16. Bxd5 {[%emt 0:00:47]} Qxd5 {[%emt 0:00:04]} 17. Qxd5 {[%emt 0:00:03]} Nxd5 {[%emt 0:00:00]} 18. Rxb2 {[%emt 0:00:01]} b6 {[%emt 0:02:27]} 19. Rd1 {[%emt 0:00:02]} Be6 {[%emt 0:00:35]} 20. Nd4 {[%emt 0:00:02]} Bd7 {[%emt 0:00:21]} 21. Nf3 {[%emt 0:00:05] A dynamic duo of knights.} Be6 {[%emt 0:00:04]} 22. Nd4 {[%emt 0:00:02]} Bd7 {[%emt 0:00:01]} 23. Nf3 {[%emt 0:00:14]} Be6 {[%emt 0:00:03] A rather calm draw.   Weighted Error Value: White=0.02 (flawless) /Black=0.02 (flawless) .  OK:         	White=3     	Black=7      Best:        	---       	Black=1} 1/2-1/2

[Event "CCT Chessable Masters D-III 2024"]
[Site "Online"]
[Date "2024.02.02"]
[Round "1"]
[White "Tabatabaei, M. Amin"]
[Black "Rakhmanov_Aleksandr"]
[Result "1/2-1/2"]
[ECO "A20"]
[WhiteElo "2696"]
[BlackElo "2628"]
[Annotator "TA"]
[PlyCount "164"]
[EventDate "2024.01.12"]
[EventType "k.o."]
[EventCountry "NET"]
[SourceTitle "playchess.com"]
[Source "ChessBase"]
[SourceQuality "1"]
[TimeControl "600+2"]

{[%evp 87,164,-49,-8,-8,-8,-8,0,0,0,0,0,0,0,0,0,0,0,0,0,0,0,0,0,0,0,0,0,0,0,0,0,0,0,0,0,0,0,0,0,0,0,0,0,0,0,0,0,0,0,0,0,0,0,0,0,0,0,0,0,0,0,0,30,30,30,30,30,0,0,0,0,0,0,0,0,0,0,0,0]} 1. c4 {[%emt 0:00:04]} e5 {[%emt 0:00:04]} 2. g3 {[%emt 0:00:01]} h5 {[%emt 0:00:02]} 3. Nf3 {[%emt 0:00:04]} d6 {[%emt 0:00:07]} 4. Nc3 {[%emt 0:00:04]} Be7 {[%emt 0:00:04]} 5. h4 {[%emt 0:00:25]} Bg4 {[%emt 0:00:11]} 6. Bg2 {[%emt 0:00:01]} Nc6 {[%emt 0:00:01]} 7. d3 {[%emt 0:00:02]} Nf6 {[%emt 0:00:08]} 8. Rb1 {[%emt 0:00:02]} a5 {[%emt 0:00:10]} 9. a3 {[%emt 0:00:04]} O-O {[%emt 0:00:08]} 10. O-O {[%emt 0:00:03]} Rb8 {[%emt 0:00:07]} 11. b4 {[%emt 0:00:28]} axb4 {[%emt 0:00:01]} 12. axb4 {[%emt 0:00:00]} Qd7 {[%emt 0:00:02]} 13. b5 {[%emt 0:00:17]} Nd4 {[%emt 0:00:03]} 14. Ng5 {[%emt 0:00:06]} Nh7 {[%emt 0:00:22]} 15. f3 {[%emt 0:00:25]} Bxg5 {[%emt 0:00:05]} 16. hxg5 {[%emt 0:00:05]} Bh3 {[%emt 0:00:02]} 17. Kh2 {[%emt 0:00:32]} Bxg2 {[%emt 0:00:10]} 18. Kxg2 {[%emt 0:00:00]} Ne6 {[%emt 0:00:35]} 19. Rh1 {[%emt 0:00:11]} g6 {[%emt 0:00:31]} 20. Ne4 {[%emt 0:00:27]} f5 {[%emt 0:00:04]} 21. gxf6 {[%emt 0:00:09]} Nxf6 {[%emt 0:00:01]} 22. Bh6 {[%emt 0:00:41]} Rf7 {[%emt 0:00:26]} 23. Qd2 {[%emt 0:00:05]} b6 {[%emt 0:00:34]} 24. Ra1 {[%emt 0:00:18]} Nd4 {[%emt 0:00:29]} 25. Ra7 {[%emt 0:00:19]} Nxe4 {[%emt 0:01:13]} 26. dxe4 {[%emt 0:00:01]} Rh7 {[%emt 0:00:02]} 27. Be3 {[%emt 0:00:07]} Ne6 {[%emt 0:00:06]} 28. Qd5 {[%emt 0:00:13]} Qf7 {[%emt 0:00:34]} 29. Kf2 {[%emt 0:00:38]} g5 {[%emt 0:00:12]} 30. Ke1 {[%emt 0:00:15]} h4 {[%emt 0:00:29]} 31. gxh4 {[%emt 0:00:33]} gxh4 {[%emt 0:00:02]} 32. Kd2 {[%emt 0:00:16]} h3 {[%emt 0:00:16]} 33. Rh2 {[%emt 0:00:39]} Kh8 {[%emt 0:00:23]} 34. Ra1 {[%emt 0:00:11]} Qd7 {[%emt 0:01:07]} 35. Rah1 {[%emt 0:00:21]} Ng7 {[%emt 0:00:34]} 36. Ke1 {[%emt 0:00:26]} Rg8 {[%emt 0:00:12]} 37. Rg1 {[%emt 0:00:07]} Ne6 {[%emt 0:00:07]} 38. Rxg8+ {[%emt 0:00:10]} Kxg8 {[%emt 0:00:00]} 39. Kf2 {[%emt 0:00:03]} Qe7 {[%emt 0:00:17]} 40. Bg5 {[%emt 0:00:12]} Qf7 {[%emt 0:00:14]} 41. Be3 {[%emt 0:00:14]} Qe7 {[%emt 0:00:02]} 42. Kf1 {[%emt 0:00:04]} Kf7 {[%emt 0:00:11]} 43. Qd1 {[%emt 0:00:07]} Qh4 {[%emt 0:00:07]} 44. Qe1 {[%emt 0:00:02]} Qxe1+ {[%emt 0:00:19]} (44... Qh5 {is more complex.} 45. Qg3 Nd8 46. Bc1 Nb7) 45. Kxe1 {[%emt 0:00:00]} Rh8 {[%emt 0:00:08]} 46. Kf2 {[%emt 0:00:02]} Ra8 {[%emt 0:00:05]} 47. Rxh3 {[%emt 0:00:06]} Ra4 {[%emt 0:00:01]} 48. Rh7+ {[%emt 0:00:10]} Kg6 {[%emt 0:00:11]} 49. Rh6+ {[%emt 0:00:01]} ({But not} 49. Re7 Kf6 50. Rh7 Rxc4 $15) 49... Kf7 {[%emt 0:00:01]} 50. Kg3 {[%emt 0:00:00]} Rxc4 {[%emt 0:00:02]} 51. Kg4 {[%emt 0:00:01]} Rc3 {[%emt 0:00:01]} 52. Bg5 {[%emt 0:00:08]} Nxg5 {[%emt 0:00:03]} 53. Kxg5 {[%emt 0:00:00]} Rc5 {[%emt 0:00:06]} 54. Kf5 {[%emt 0:00:13]} Kg7 {[%emt 0:00:01]} 55. Rg6+ {[%emt 0:00:27]} Kf7 {[%emt 0:00:00]} 56. Rf6+ {[%emt 0:00:00]} Ke7 {[%emt 0:00:04]} 57. Rh6 {[%emt 0:00:17]} Rxb5 {[%emt 0:00:00]} 58. Rh7+ {[%emt 0:00:00]} Kd8 {[%emt 0:00:01]} 59. Ke6 {[%emt 0:00:00]} Kc8 {[%emt 0:00:00]} 60. e3 {[%emt 0:00:01]} Rb4 {[%emt 0:00:04]} 61. Rh1 {[%emt 0:00:19]} b5 {[%emt 0:00:03]} 62. Re1 {[%emt 0:00:00]} Rb2 {[%emt 0:00:15]} 63. f4 {[%emt 0:00:00]} exf4 $1 {[%emt 0:00:01]} 64. exf4 {[%emt 0:00:01]} Rf2 {[%emt 0:00:02]} 65. f5 {[%emt 0:00:00]} Kb7 $1 {[%emt 0:00:01]} 66. f6 {[%emt 0:00:01]} c5 {[%emt 0:00:01]} 67. f7 {[%emt 0:00:07]} b4 {[%emt 0:00:02]} 68. e5 {[%emt 0:00:36]} dxe5 {[%emt 0:00:03]} 69. Rxe5 {[%emt 0:00:00]} Rxf7 {[%emt 0:00:04]} 70. Kxf7 {[%emt 0:00:00]} Kc6 {[%emt 0:00:01]} 71. Ke6 {[%emt 0:00:03]} b3 {[%emt 0:00:00]} 72. Kf5 {[%emt 0:00:00]} b2 {[%emt 0:00:05]} (72... c4 $5 73. Re1 $8 Kb5 $11) 73. Re1 $1 {[%emt 0:00:01]} Kd5 $1 {[%emt 0:00:01]} (73... c4 74. Ke4 Kc5 75. Rb1 c3 76. Kd3 Kb4 77. Kc2 Kc4 78. Rd1) 74. Rb1 {[%emt 0:00:04]} Kd4 {[%emt 0:00:03]} 75. Rxb2 {[%emt 0:00:02]} c4 {[%emt 0:00:00]} 76. Rd2+ {[%emt 0:00:01]} Ke3 $1 {[%emt 0:00:02]} ({Inferior is} 76... Kc3 77. Rd8 Kc2 78. Ke4 c3 79. Rg8 Kb3 80. Kd3 Kb4 81. Rc8 (81. Kc2 Kc5 82. Rd8 Kc4 83. Rd3 Kb5 84. Kxc3 Kc5 85. Rd4 Kb6)) 77. Rd8 {[%emt 0:00:01]} c3 {[%emt 0:00:01]} 78. Re8+ {[%emt 0:00:00]} Kd3 {[%emt 0:00:01]} 79. Rd8+ {[%emt 0:00:00]} Ke3 {[%emt 0:00:01]} 80. Rc8 {[%emt 0:00:00]} Kd2 {[%emt 0:00:04]} 81. Ke4 {[%emt 0:00:03]} c2 {[%emt 0:00:00]} 82. Rxc2+ {[%emt 0:00:00]} Kxc2 {[%emt 0:00:01]} 1/2-1/2

[Event "CCT Chessable Masters D-III 2024"]
[Site "Online"]
[Date "2024.02.02"]
[Round "1"]
[White "Sarana, Alexey"]
[Black "Yoo, Christopher Woojin"]
[Result "1/2-1/2"]
[ECO "E48"]
[WhiteElo "2695"]
[BlackElo "2595"]
[Annotator "TA"]
[PlyCount "97"]
[EventDate "2024.01.12"]
[EventType "k.o."]
[EventCountry "NET"]
[SourceTitle "playchess.com"]
[Source "ChessBase"]
[SourceQuality "1"]
[TimeControl "600+2"]

{[%evp 11,97,0,9,4,18,-25,-23,-23,-16,-24,-23,-26,0,-11,0,0,0,0,0,0,0,-18,0,0,4,15,6,17,5,0,0,0,19,16,21,17,18,17,17,19,17,0,0,0,0,0,0,0,8,8,0,0,0,0,0,0,0,0,0,0,0,0,0,0,0,0,0,0,0,0,0,0,0,0,0,0,0,0,0,0,0,0,0,0,0,0,0,0]} 1. d4 {[%emt 0:00:02]} Nf6 {[%emt 0:00:03]} 2. c4 {[%emt 0:00:01]} e6 {[%emt 0:00:01]} 3. Nc3 {[%emt 0:00:01]} Bb4 {[%emt 0:00:04]} 4. e3 {[%emt 0:00:01]} O-O {[%emt 0:00:02]} 5. Bd3 {[%emt 0:00:01]} d5 {[%emt 0:00:08]} 6. Nge2 {[%emt 0:00:01]} b6 {[%emt 0:01:10]} 7. a3 {[%emt 0:00:04]} Be7 {[%emt 0:00:02]} 8. e4 {[%emt 0:00:04]} dxe4 {[%emt 0:00:02]} 9. Nxe4 {[%emt 0:00:01] Black has an edge.} Bb7 {[%emt 0:00:01]} 10. Nxf6+ {[%emt 0:00:25]} Bxf6 {[%emt 0:00:02]} 11. O-O {[%emt 0:00:00]} Nd7 {[%emt 0:00:49]} 12. Qc2 {[%emt 0:00:07] The position is equal.} h6 {[%emt 0:00:04]} 13. Be3 {[%emt 0:00:08]} c5 {[%emt 0:00:15]} 14. Rad1 {[%emt 0:00:10]} cxd4 {[%emt 0:00:37]} 15. Nxd4 {[%emt 0:00:03]} Qe7 {[%emt 0:00:02]} 16. Bh7+ {[%emt 0:00:16]} Kh8 {[%emt 0:00:03] White must now prevent ...g6.} 17. Be4 {[%emt 0:00:01]} Bxe4 {[%emt 0:00:33]} 18. Qxe4 {[%emt 0:00:00]} Nc5 {[%emt 0:00:01]} 19. Qf3 {[%emt 0:00:23]} Qb7 {[%emt 0:00:27]} 20. Qh5 {[%emt 0:00:52][%cal Oe3h6]} (20. Qxb7 {simplifies} Nxb7 21. b4 Rfc8 22. Rc1) 20... Qe4 {[%emt 0:00:34]} 21. b4 {[%emt 0:01:59]} Nd3 {[%emt 0:01:10]} (21... Rad8 $5) 22. Qe2 {[%emt 0:01:24]} Bxd4 {[%emt 0:00:46]} 23. Qxd3 {[%emt 0:00:06]} Qxd3 {[%emt 0:00:08]} 24. Rxd3 {[%emt 0:00:00]} Bxe3 {[%emt 0:00:00]} 25. fxe3 $11 {[%emt 0:00:01][%mdl 4096] Endgame. KRR-KRR} Rac8 {[%emt 0:00:27]} 26. Rd7 {[%emt 0:01:24]} Rxc4 {[%emt 0:00:03]} 27. Rxa7 {[%emt 0:00:00]} Rc3 {[%emt 0:00:35]} 28. Rf3 {[%emt 0:00:34][%cal Oa3a4]} Kg8 {[%emt 0:00:23]} 29. e4 {[%emt 0:00:09]} Rxf3 {[%emt 0:00:41]} 30. gxf3 {[%emt 0:00:02] KR-KR} Rc8 {[%emt 0:00:00]} 31. Kf2 {[%emt 0:00:29]} g5 {[%emt 0:00:18]} 32. Kg3 {[%emt 0:00:33]} Kg7 {[%emt 0:00:26]} 33. Rb7 {[%emt 0:00:06]} Ra8 {[%emt 0:00:03]} 34. h4 {[%emt 0:00:02]} Rxa3 {[%emt 0:00:09]} 35. hxg5 {[%emt 0:00:01]} hxg5 {[%emt 0:00:00]} 36. Rxb6 {[%emt 0:00:01]} Rb3 {[%emt 0:00:01]} 37. Rb8 {[%emt 0:00:01]} Rb2 {[%emt 0:00:03]} 38. Kg4 {[%emt 0:00:05]} Rg2+ {[%emt 0:00:17]} 39. Kh3 {[%emt 0:00:01]} Rb2 {[%emt 0:00:01]} 40. b5 {[%emt 0:00:02]} f5 {[%emt 0:00:10]} 41. b6 {[%emt 0:00:07]} Rb3 {[%emt 0:00:19]} 42. Kg2 {[%emt 0:00:01]} g4 {[%emt 0:00:06]} 43. fxg4 {[%emt 0:00:05]} fxg4 {[%emt 0:00:01]} 44. Kf2 {[%emt 0:00:03]} Kh7 {[%emt 0:00:02]} 45. b7 {[%emt 0:00:07]} Kg7 {[%emt 0:00:02]} 46. Kg2 {[%emt 0:00:08]} Kh7 {[%emt 0:00:00]} 47. Kf2 {[%emt 0:00:01]} Kg7 {[%emt 0:00:01]} 48. Kg2 {[%emt 0:00:00]} Kh7 {[%emt 0:00:01]} 49. Kf2 {[%emt 0:00:01] A balanced but interesting game.   Weighted Error Value: White=0.03 (flawless) /Black=0.02 (flawless) .  Inaccurate:     	White=1     	---        OK:         	White=12    	Black=22     Best:        	---       	Black=2} 1/2-1/2

[Event "CCT Chessable Masters D-III 2024"]
[Site "Online"]
[Date "2024.02.02"]
[Round "1"]
[White "Deac, Bogdan-Daniel"]
[Black "stSecond"]
[Result "0-1"]
[ECO "C54"]
[WhiteElo "2690"]
[BlackElo "2564"]
[Annotator "TA"]
[PlyCount "106"]
[EventDate "2024.01.12"]
[EventType "k.o."]
[EventCountry "NET"]
[SourceTitle "playchess.com"]
[Source "ChessBase"]
[SourceQuality "1"]
[TimeControl "600+2"]

{[%evp 39,106,70,84,74,85,77,77,82,95,73,101,77,114,100,139,50,139,27,139,73,114,55,143,58,126,58,57,-15,-26,-18,-12,-4,-16,-22,-5,-104,-12,-39,-42,-49,-37,-77,-43,-101,-86,-98,-99,-99,-102,-86,-89,-139,-139,-139,-139,-310,-315,-427,-347,-465,-464,-516,-490,-597,-590,-705,-741,-861,-853]} 1. e4 {[%emt 0:00:02]} e5 {[%emt 0:00:05]} 2. Nf3 {[%emt 0:00:02]} Nc6 {[%emt 0:00:00]} 3. Bc4 {[%emt 0:00:01]} Bc5 {[%emt 0:00:02]} 4. c3 {[%emt 0:00:02]} Nf6 {[%emt 0:00:01]} 5. d3 {[%emt 0:00:01]} d6 {[%emt 0:00:02]} 6. O-O {[%emt 0:00:01]} h6 {[%emt 0:00:04]} 7. Re1 {[%emt 0:00:02]} O-O {[%emt 0:00:04] C54: Giuoco Piano: 4 c3 Nf6, main lines with 5 d4 and 5 d3.} 8. Nbd2 {[%emt 0:00:01]} a5 {[%emt 0:00:01]} 9. Nf1 {[%emt 0:00:11]} Re8 {[%emt 0:00:38] 9...a4 is a critical line.} 10. Ng3 {[%emt 0:00:08]} Be6 {[%emt 0:01:14]} 11. Bb5 {[%emt 0:00:13]} Bd7 {[%emt 0:00:18]} 12. h3 {[%emt 0:00:19]} Ba7 {[%emt 0:00:17]} 13. a4 {[%emt 0:00:21]} Ne7 {[%emt 0:01:19]} 14. Bc4 $5 $146 {[%emt 0:00:09][%mdl 8] An interesting novelty.} ({Predecessor:} 14. d4 Ng6 15. Bd3 c6 16. Be3 Qc7 17. Qc2 b5 18. axb5 cxb5 19. Qd2 Bc6 20. Nh2 {0-1 Santos Ruiz,M (2581)-Pichot,A (2641) ESP-chT Rapid 2022 (8)}) 14... Ng6 {[%emt 0:00:11]} 15. Qb3 {[%emt 0:00:30]} Rf8 {[%emt 0:00:44]} 16. d4 {[%emt 0:00:03]} Qc8 {[%emt 0:00:19]} 17. Be3 {[%emt 0:00:12]} Bc6 {[%emt 0:00:28]} 18. Bd3 {[%emt 0:02:09]} Re8 {[%emt 0:00:05]} 19. Qc2 {[%emt 0:00:02]} Bb6 {[%emt 0:00:52]} 20. Rad1 {[%emt 0:00:38]} Kh7 {[%emt 0:00:40]} 21. b3 {[%emt 0:00:35]} Ba7 {[%emt 0:00:11]} 22. Qb1 {[%emt 0:03:35]} Bd7 {[%emt 0:00:05]} 23. Qc1 {[%emt 0:00:33]} Be6 {[%emt 0:00:53]} 24. c4 {[%emt 0:00:20]} Rd8 {[%emt 0:00:48]} 25. Bf1 {[%emt 0:00:19]} (25. Nf5 {keeps more tension.} Ng8 26. Qb2 Nf6 27. dxe5 dxe5 28. Bxa7 Rxa7 29. Nxe5 Nxe5 30. Qxe5 Bxf5 31. Qxf5+ Qxf5 32. exf5 Raa8 33. g4) 25... Qb8 {[%emt 0:00:09]} 26. Qc3 {[%emt 0:00:11]} Re8 {[%emt 0:00:13] [#]} 27. Kh2 {[%emt 0:00:12]} (27. Qxa5 exd4 28. Bc1 Bb6 $15) (27. c5 $1 $16) 27... Bd7 {[%emt 0:00:20]} (27... exd4 $14 28. Nxd4 (28. Bxd4 Bxd4 29. Qxd4 Kg8 $14) 28... Bc5) 28. Qc2 {[%emt 0:00:01]} (28. Qxa5 exd4 29. Bc1 Bb6 $15) (28. c5 $16) 28... Bc6 {[%emt 0:00:03]} (28... exd4 $1 $11 29. Nxd4 (29. Bxd4 Bxd4 30. Nxd4 Qa7 $11) 29... Kg8) 29. Bd3 {[%emt 0:00:02]} (29. c5 $142) 29... Bd7 {[%emt 0:00:03]} 30. Kg1 {[%emt 0:00:01]} (30. c5 $16) 30... Qc8 {[%emt 0:00:01]} ({Better is} 30... exd4 $14 31. Nxd4 (31. Bxd4 Bxd4 32. Nxd4 Qa7 $14) 31... Kg8) 31. Qc3 {[%emt 0:00:03]} (31. c5 $16) 31... Kg8 {[%emt 0:00:06]} (31... exd4 $14 32. Bxd4 (32. Qxa5 $2 dxe3 33. Kh2 exf2 $19) (32. Nxd4 Kg8 $16) 32... Bxd4 33. Nxd4 Kg8) 32. Bf1 {[%emt 0:00:01]} (32. Qxa5 exd4 33. Bc1 Bb6 $11) (32. c5 $16) 32... Bc6 {[%emt 0:00:04]} 33. Nd2 {[%emt 0:00:02]} (33. Qxa5 $2 Nxe4 (33... Bxe4 34. Qc3 $15) (33... exd4 34. Bc1 $17) 34. Nxe4 Bxe4 $17) (33. d5 $14 Bxe3 34. Qxe3 (34. Rxe3 Bd7 $14)) 33... exd4 $11 {[%emt 0:00:25]} 34. Bxd4 {[%emt 0:00:01]} Bxd4 {[%emt 0:00:00]} 35. Qxd4 {[%emt 0:00:00]} Qe6 {[%emt 0:00:03]} 36. Nb1 {[%emt 0:00:03]} Qe5 {[%emt 0:00:10]} (36... Nxe4 $2 {is the wrong capture.} 37. Nxe4 Bxe4 38. Nc3 $18 (38. f3 Qd7 $18)) (36... Bxe4 $2 {perishes.} 37. Nc3 $18) 37. Qe3 {[%emt 0:00:00]} (37. Qxe5 $11 {remains equal.} Rxe5 38. Nc3) 37... Nd7 {[%emt 0:00:04]} (37... Bxe4 $17 38. Nxe4 Nxe4) 38. Nd2 {[%emt 0:00:03]} Nc5 {[%emt 0:00:01]} 39. Nf3 {[%emt 0:00:01]} Qf4 {[%emt 0:00:04]} 40. Nd2 {[%emt 0:00:06]} Re6 {[%emt 0:00:08]} 41. Qxf4 {[%emt 0:00:02]} (41. Bd3 $15) 41... Nxf4 $17 {[%emt 0:00:01]} 42. f3 {[%emt 0:00:01]} g6 {[%emt 0:00:05]} 43. Re3 {[%emt 0:00:02]} Rae8 {[%emt 0:00:01]} 44. Rc3 {[%emt 0:00:01]} h5 {[%emt 0:00:02]} 45. Nh1 {[%emt 0:00:05]} (45. h4 $142) 45... h4 $17 {[%emt 0:00:01]} 46. Nf2 {[%emt 0:00:01]} f5 {[%emt 0:00:01]} 47. exf5 $2 {[%emt 0:00:02]} (47. Nd3 $17 Ncxd3 48. Bxd3) 47... gxf5 $19 {[%emt 0:00:00]} 48. Rcc1 {[%emt 0:00:01]} Kg7 {[%emt 0:00:02]} 49. Rb1 {[%emt 0:00:03]} Kf7 {[%emt 0:00:02]} 50. Rdc1 {[%emt 0:00:02]} Rg8 {[%emt 0:00:02]} 51. Kh1 {[%emt 0:00:02]} Reg6 {[%emt 0:00:01]} 52. b4 {[%emt 0:00:02]} axb4 {[%emt 0:00:01]} 53. Rxb4 {[%emt 0:00:00]} Nxg2 {[%emt 0:00:01]} 0-1

[Event "CCT Chessable Masters D-III 2024"]
[Site "Online"]
[Date "2024.02.02"]
[Round "1"]
[White "KuzubovYuriy"]
[Black "ViIIagra"]
[Result "1-0"]
[ECO "E60"]
[WhiteElo "2686"]
[BlackElo "2609"]
[Annotator "TA"]
[PlyCount "59"]
[EventDate "2024.01.12"]
[EventType "k.o."]
[EventCountry "NET"]
[SourceTitle "playchess.com"]
[Source "ChessBase"]
[SourceQuality "1"]
[TimeControl "600+2"]

{[%evp 11,59,26,31,7,37,29,15,13,14,8,18,20,15,16,6,18,0,16,27,2,4,8,47,35,82,78,92,102,96,104,96,95,105,105,105,104,109,104,250,256,255,243,265,240,307,300,372,372,372,372]} 1. d4 {[%emt 0:00:03]} Nf6 {[%emt 0:00:06]} 2. c4 {[%emt 0:00:00]} g6 {[%emt 0:00:07]} 3. Nf3 {[%emt 0:00:01]} Bg7 {[%emt 0:00:06]} 4. g3 {[%emt 0:00:01]} O-O {[%emt 0:00:10]} 5. Bg2 {[%emt 0:00:03]} d6 {[%emt 0:00:02][%cal Bd7d6,Bd6d5][%mdl 32]} 6. O-O {[%emt 0:00:03]} c6 {[%emt 0:00:00]} 7. Re1 {[%emt 0:00:30]} Ne4 {[%emt 0:01:10]} 8. Qc2 {[%emt 0:00:53]} d5 {[%emt 0:00:56]} 9. Nc3 {[%emt 0:01:48] The position is equal.} Nxc3 {[%emt 0:01:27]} 10. Qxc3 {[%emt 0:00:08]} Bf5 {[%emt 0:00:33]} 11. Bf4 {[%emt 0:01:09]} Be4 {[%emt 0:00:30]} 12. cxd5 {[%emt 0:00:48]} cxd5 {[%emt 0:00:03]} 13. Ne5 {[%emt 0:00:09] Wards off Nc6} Bxg2 {[%emt 0:01:38]} 14. Kxg2 {[%emt 0:00:00]} Nd7 {[%emt 0:00:01]} 15. Rec1 {[%emt 0:00:58]} Nxe5 {[%emt 0:00:12]} 16. dxe5 {[%emt 0:00:01]} Rc8 {[%emt 0:00:30]} 17. Qa3 {[%emt 0:00:43]} (17. Qd4 {simplifies} Rxc1 18. Rxc1 b6 19. h4) 17... d4 {[%emt 0:00:57]} (17... Qb6 $14 {is superior.}) 18. Rxc8 $16 {[%emt 0:00:17]} ({Reject} 18. Qxa7 $6 Qd5+ 19. f3 Bxe5 $11) 18... Qd5+ {[%emt 0:00:08] [#]} 19. Qf3 $1 {[%emt 0:00:01]} Qxf3+ {[%emt 0:00:02]} 20. Kxf3 {[%emt 0:00:00]} Rxc8 {[%emt 0:00:01][%mdl 4096] Endgame. KRB-KRB} 21. Rd1 {[%emt 0:00:07]} f6 {[%emt 0:00:27]} 22. exf6 {[%emt 0:00:17]} Bxf6 {[%emt 0:00:02] [#]} 23. Rc1 $1 {[%emt 0:00:13]} Rxc1 {[%emt 0:01:00]} 24. Bxc1 {[%emt 0:00:00] KB-KB} e5 {[%emt 0:00:00] Black cannot hold the game after this.} (24... Kf7 $16 {is a better defense.}) 25. Ke4 $18 {[%emt 0:00:04]} Kf7 {[%emt 0:00:01]} 26. Kd5 {[%emt 0:00:04]} Ke7 {[%emt 0:00:07]} 27. b3 {[%emt 0:00:03]} Kd7 {[%emt 0:00:01]} 28. f3 {[%emt 0:00:03]} Bg7 {[%emt 0:00:10]} 29. Ba3 {[%emt 0:00:04]} Bf6 {[%emt 0:00:27]} 30. Bd6 {[%emt 0:00:04] Weighted Error Value: White=0.04 (flawless) /Black=0.21 (precise) .  Mistake:       	---       	Black=2      Inaccurate:     	---       	Black=2      OK:         	White=8     	Black=4      Best:        	White=2     	Black=2      Strong:       	White=2     	---} 1-0